fUSD/lending_fUSD_20250111
["ID","MTS","AMOUNT","RATE_DAILY","PERIOD"]
[348474527,1736553956785,2000.0,0.0002,120]
[348474528,1736554047226,2000.0,0.0002,120]
[348474529,1736554126680,1000.0,8e-05,2]
[348474530,1736554223583,647.87,8.219e-05,2]
[348474533,1736554232008,-250.0,9.098e-05,2]
[348474534,1736554232017,-200.0,9.099e-05,2]
[348474535,1736554232029,-288.4,9.164e-05,2]
[348474536,1736554232039,-250.0,9.232e-05,2]
[348474537,1736554232048,-1000.0,9.247e-05,2]
[348474538,1736554232059,-194.69359182,9.257e-05,2]
[348474539,1736554232357,-55.30640818,9.257e-05,2]
[348474540,1736554232367,-515.23,9.263e-05,2]
[348474541,1736554232377,-300.0,9.287e-05,2]
[348474542,1736554232387,-11297.76647711,9.288e-05,2]
[348474543,1736554232425,-9930.54989418,9.288e-05,2]
[348474544,1736554232437,-300.0,9.288e-05,2]
[348474547,1736554232454,-1586.11079054,9.288e-05,2]
[348474549,1736554232471,-785.57283817,9.288e-05,2]
[348474551,1736554232482,-209.192,9.5e-05,2]
[348474552,1736554232492,-2685.0,9.606e-05,2]
[348474554,1736554232501,-500.0,9.899e-05,2]
[348474556,1736554232511,-500.0,9.899e-05,2]
[348474558,1736554232521,-808.85402702,9.899e-05,2]
[348474562,1736554232544,-1869.64597298,9.899e-05,2]
[348474564,1736554232556,-1086.44,9.899e-05,2]
[348474566,1736554232566,-2558.66,9.899e-05,2]
[348474567,1736554232576,-1695.46621197,9.899e-05,2]
[348474568,1736554232598,-497.65536239,9.899e-05,2]
[348474570,1736554237912,-715.11842564,9.899e-05,2]
[348474571,1736554237922,-500.0,9.899e-05,2]
[348474572,1736554237932,-143.38499063,9.899e-05,2]
[348474573,1736554237943,-1025.46500937,9.899e-05,2]
[348474574,1736554237953,-47.43499063,9.899e-05,2]
[348474575,1736554238017,-406.17610404,9.899e-05,2]
[348474576,1736554238029,-1796.03890533,9.899e-05,2]
[348474577,1736554238039,-1000.0,9.9e-05,2]
[348474578,1736554238049,-500.0,9.973e-05,2]
[348474579,1736554238059,-500.0,9.973e-05,2]
[348474580,1736554238069,-198.15783289,9.973e-05,2]
[348474581,1736554238078,-159.82911988,9.973e-05,2]
[348474582,1736554238088,-500.0,9.992e-05,2]
[348474583,1736554238098,-2650.713829,9.992e-05,2]
[348474584,1736554238109,-4732.71407297,9.992e-05,2]
[348474585,1736554238121,-337.83016865,9.992e-05,2]
[348474586,1736554238144,-0.76031278,9.992e-05,2]
[348474587,1736554238154,-500.0,9.998e-05,2]
[348474588,1736554238164,-500.0,9.998e-05,2]
[348474589,1736554238175,-500.0,9.998e-05,2]
[348474590,1736554238186,-500.0,9.998e-05,2]
[348474591,1736554238197,-598.30490611,9.998e-05,2]
[348474592,1736554238208,-500.0,9.998e-05,2]
[348474593,1736554238219,-500.0,9.998e-05,2]
[348474594,1736554238229,-500.0,9.998e-05,2]
[348474596,1736554238239,-500.0,9.998e-05,2]
[348474598,1736554238251,-500.0,9.998e-05,2]
[348474599,1736554238263,-500.0,9.998e-05,2]
[348474600,1736554238272,-500.0,9.998e-05,2]
[348474601,1736554238281,-500.0,9.998e-05,2]
[348474603,1736554238291,-500.0,9.998e-05,2]
[348474605,1736554238300,-500.0,9.998e-05,2]
[348474607,1736554238309,-500.0,9.998e-05,2]
[348474609,1736554238319,-612.22027053,9.998e-05,2]
[348474611,1736554238328,-500.0,9.998e-05,2]
[348474613,1736554238337,-500.0,9.998e-05,2]
[348474615,1736554238347,-500.0,9.998e-05,2]
[348474617,1736554238356,-500.0,9.998e-05,2]
[348474619,1736554238366,-500.0,9.998e-05,2]
[348474621,1736554238376,-500.0,9.998e-05,2]
[348474623,1736554238385,-500.0,9.998e-05,2]
[348474624,1736554238394,-500.0,9.998e-05,2]
[348474627,1736554238404,-500.0,9.998e-05,2]
[348474629,1736554238414,-500.0,9.998e-05,2]
[348474631,1736554238424,-500.0,9.998e-05,2]
[348474633,1736554238433,-500.0,9.998e-05,2]
[348474635,1736554238443,-500.0,9.998e-05,2]
[348474636,1736554238452,-500.0,9.998e-05,2]
[348474638,1736554238462,-500.0,9.998e-05,2]
[348474640,1736554238471,-190.17781564,9.998e-05,2]
[348474642,1736554238481,-500.0,9.998e-05,2]
[348474644,1736554238491,-281.61569494,9.998e-05,2]
[348474646,1736554238503,-218.38430506,9.998e-05,2]
[348474648,1736554238513,-500.0,9.998e-05,2]
[348474649,1736554238522,-500.0,9.998e-05,2]
[348474651,1736554238531,-500.0,9.998e-05,2]
[348474653,1736554238541,-500.0,9.998e-05,2]
[348474655,1736554238551,-500.0,9.998e-05,2]
[348474657,1736554238560,-331.46729494,9.998e-05,2]
[348474660,1736554238584,-168.53270506,9.998e-05,2]
[348474662,1736554238594,-500.0,9.998e-05,2]
[348474664,1736554238604,-500.0,9.998e-05,2]
[348474666,1736554238614,-500.0,9.998e-05,2]
[348474667,1736554238623,-500.0,9.998e-05,2]
[348474669,1736554238634,-500.0,9.998e-05,2]
[348474671,1736554238643,-500.0,9.998e-05,2]
[348474673,1736554238653,-500.0,9.998e-05,2]
[348474674,1736554238662,-500.0,9.998e-05,2]
[348474675,1736554238670,-500.0,9.998e-05,2]
[348474676,1736554238679,-500.0,9.998e-05,2]
[348474677,1736554238689,-500.0,9.998e-05,2]
[348474678,1736554238699,-500.0,9.998e-05,2]
[348474679,1736554238708,-500.0,9.998e-05,2]
[348474680,1736554238718,-222.56,9.998e-05,2]
[348474681,1736554238729,-500.0,9.998e-05,2]
[348474682,1736554238738,-500.0,9.998e-05,2]
[348474683,1736554238748,-500.0,9.998e-05,2]
[348474684,1736554238758,-500.0,9.998e-05,2]
[348474685,1736554238767,-476.14,9.998e-05,2]
[348474686,1736554238776,-500.0,9.998e-05,2]
[348474687,1736554238785,-521.4,9.998e-05,2]
[348474688,1736554238795,-500.0,9.998e-05,2]
[348474689,1736554238807,-500.0,9.998e-05,2]
[348474690,1736554238817,-500.0,9.998e-05,2]
[348474691,1736554238826,-500.0,9.998e-05,2]
[348474693,1736554238836,-500.0,9.998e-05,2]
[348474694,1736554238845,-500.0,9.998e-05,2]
[348474696,1736554238855,-500.0,9.998e-05,2]
[348474698,1736554238864,-151.06,9.998e-05,2]
[348474700,1736554238874,-500.0,9.998e-05,2]
[348474702,1736554238884,-500.0,9.998e-05,2]
[348474704,1736554238893,-500.0,9.998e-05,2]
[348474706,1736554238904,-520.16598063,9.998e-05,2]
[348474708,1736554238914,-500.0,9.998e-05,2]
[348474710,1736554238923,-174.54,9.998e-05,2]
[348474712,1736554238933,-500.0,9.998e-05,2]
[348474714,1736554238944,-502.12161203,9.998e-05,2]
[348474716,1736554238953,-500.0,9.998e-05,2]
[348474718,1736554238963,-500.0,9.998e-05,2]
[348474720,1736554238972,-500.0,9.998e-05,2]
[348474722,1736554238982,-500.0,9.998e-05,2]
[348474724,1736554238992,-500.0,9.998e-05,2]
[348474726,1736554239002,-559.22,9.998e-05,2]
[348474728,1736554239011,-354.78217962,9.998e-05,2]
[348474730,1736554239021,-500.0,9.998e-05,2]
[348474732,1736554239031,-205.22,9.998e-05,2]
[348474735,1736554239041,-500.0,9.998e-05,2]
[348474736,1736554239051,-500.0,9.998e-05,2]
[348474739,1736554239061,-500.0,9.998e-05,2]
[348474741,1736554239070,-500.0,9.998e-05,2]
[348474742,1736554239080,-500.0,9.998e-05,2]
[348474745,1736554239090,-571.12,9.998e-05,2]
[348474747,1736554239101,-500.0,9.998e-05,2]
[348474749,1736554239110,-500.0,9.998e-05,2]
[348474751,1736554239120,-500.0,9.998e-05,2]
[348474753,1736554239130,-500.0,9.998e-05,2]
[348474755,1736554239139,-500.0,9.998e-05,2]
[348474757,1736554239151,-500.0,9.998e-05,2]
[348474758,1736554239162,-500.0,9.998e-05,2]
[348474760,1736554239172,-500.0,9.998e-05,2]
[348474762,1736554239182,-500.0,9.998e-05,2]
[348474764,1736554239191,-500.0,9.998e-05,2]
[348474766,1736554239201,-500.0,9.998e-05,2]
[348474768,1736554239211,-500.0,9.998e-05,2]
[348474770,1736554239221,-535.33,9.998e-05,2]
[348474772,1736554239230,-693.2588,9.998e-05,2]
[348474774,1736554239239,-500.0,9.998e-05,2]
[348474776,1736554239250,-500.0,9.998e-05,2]
[348474778,1736554239261,-500.0,9.998e-05,2]
[348474780,1736554239271,-500.0,9.998e-05,2]
[348474782,1736554239281,-500.0,9.998e-05,2]
[348474784,1736554239291,-500.0,9.998e-05,2]
[348474786,1736554239300,-500.0,9.998e-05,2]
[348474788,1736554239309,-572.684649,9.998e-05,2]
[348474790,1736554239319,-500.0,9.998e-05,2]
[348474792,1736554239329,-500.0,9.998e-05,2]
[348474794,1736554239339,-500.0,9.998e-05,2]
[348474796,1736554239348,-602.82,9.998e-05,2]
[348474798,1736554239358,-296.64,9.998e-05,2]
[348474800,1736554239368,-500.0,9.998e-05,2]
[348474801,1736554239377,-500.0,9.998e-05,2]
[348474803,1736554239387,-500.0,9.998e-05,2]
[348474805,1736554239397,-500.0,9.998e-05,2]
[348474808,1736554239406,-500.0,9.998e-05,2]
[348474809,1736554239416,-500.0,9.998e-05,2]
[348474811,1736554239425,-500.0,9.998e-05,2]
[348474813,1736554239435,-500.0,9.998e-05,2]
[348474815,1736554239445,-539.87762455,9.998e-05,2]
[348474818,1736554239454,-201.18220201,9.998e-05,2]
[348474820,1736554239464,-500.0,9.998e-05,2]
[348474822,1736554239474,-500.0,9.998e-05,2]
[348474823,1736554239483,-500.0,9.998e-05,2]
[348474825,1736554239493,-500.0,9.998e-05,2]
[348474827,1736554239502,-500.0,9.998e-05,2]
[348474829,1736554239512,-639.72,9.998e-05,2]
[348474831,1736554239521,-500.0,9.998e-05,2]
[348474833,1736554239531,-500.0,9.998e-05,2]
[348474835,1736554239540,-500.0,9.998e-05,2]
[348474837,1736554239550,-500.0,9.998e-05,2]
[348474839,1736554239559,-500.0,9.998e-05,2]
[348474841,1736554239569,-500.0,9.998e-05,2]
[348474843,1736554239579,-500.0,9.998e-05,2]
[348474845,1736554239588,-500.0,9.998e-05,2]
[348474847,1736554239597,-500.0,9.998e-05,2]
[348474849,1736554239606,-617.43,9.998e-05,2]
[348474851,1736554239615,-500.0,9.998e-05,2]
[348474853,1736554239625,-500.0,9.998e-05,2]
[348474855,1736554239634,-500.0,9.998e-05,2]
[348474857,1736554239644,-500.0,9.998e-05,2]
[348474859,1736554239653,-500.0,9.998e-05,2]
[348474861,1736554239663,-500.0,9.998e-05,2]
[348474863,1736554239673,-2303.2,9.998e-05,2]
[348474865,1736554239683,-500.0,9.998e-05,2]
[348474867,1736554239692,-500.0,9.998e-05,2]
[348474869,1736554239702,-2261.06,9.998e-05,2]
[348474871,1736554239711,-500.0,9.998e-05,2]
[348474873,1736554239721,-500.0,9.998e-05,2]
[348474875,1736554239731,-210.27,9.998e-05,2]
[348474877,1736554239739,-500.0,9.998e-05,2]
[348474879,1736554239749,-500.0,9.998e-05,2]
[348474881,1736554239758,-500.0,9.998e-05,2]
[348474883,1736554239768,-500.0,9.998e-05,2]
[348474885,1736554239778,-500.0,9.998e-05,2]
[348474887,1736554239787,-500.0,9.998e-05,2]
[348474889,1736554239797,-500.0,9.998e-05,2]
[348474891,1736554239806,-832.94,9.998e-05,2]
[348474893,1736554239816,-500.0,9.998e-05,2]
[348474895,1736554239825,-500.0,9.998e-05,2]
[348474897,1736554239834,-500.0,9.998e-05,2]
[348474899,1736554239844,-500.0,9.998e-05,2]
[348474901,1736554239854,-500.0,9.998e-05,2]
[348474903,1736554239863,-500.0,9.998e-05,2]
[348474905,1736554239873,-500.0,9.998e-05,2]
[348474907,1736554239883,-1332.78,9.998e-05,2]
[348474909,1736554239893,-500.0,9.998e-05,2]
[348474911,1736554239902,-500.0,9.998e-05,2]
[348474913,1736554239912,-532.82,9.998e-05,2]
[348474915,1736554239923,-1131.42,9.998e-05,2]
[348474917,1736554239932,-500.0,9.998e-05,2]
[348474919,1736554239942,-1062.56,9.998e-05,2]
[348474921,1736554239952,-500.0,9.998e-05,2]
[348474923,1736554239961,-500.0,9.998e-05,2]
[348474925,1736554239971,-500.0,9.998e-05,2]
[348474927,1736554239981,-1490.42,9.998e-05,2]
[348474929,1736554239990,-500.0,9.998e-05,2]
[348474931,1736554240000,-500.0,9.998e-05,2]
[348474933,1736554240010,-500.0,9.998e-05,2]
[348474935,1736554240020,-1041.77,9.998e-05,2]
[348474938,1736554240031,-3674.74,9.998e-05,2]
[348474939,1736554240041,-500.0,9.998e-05,2]
[348474941,1736554240051,-500.0,9.998e-05,2]
[348474943,1736554240060,-500.0,9.998e-05,2]
[348474945,1736554240070,-500.0,9.998e-05,2]
[348474948,1736554240080,-888.52,9.998e-05,2]
[348474950,1736554240090,-621.0,9.998e-05,2]
[348474952,1736554240100,-500.0,9.998e-05,2]
[348474954,1736554240111,-500.0,9.998e-05,2]
[348474956,1736554240121,-500.0,9.998e-05,2]
[348474957,1736554240133,-500.0,9.998e-05,2]
[348474960,1736554240144,-500.0,9.998e-05,2]
[348474962,1736554240156,-500.0,9.998e-05,2]
[348474964,1736554240167,-500.0,9.998e-05,2]
[348474966,1736554240177,-500.0,9.998e-05,2]
[348474968,1736554240187,-500.0,9.998e-05,2]
[348474970,1736554240197,-1691.41,9.998e-05,2]
[348474972,1736554240208,-500.0,9.998e-05,2]
[348474974,1736554240218,-500.0,9.998e-05,2]
[348474976,1736554240227,-500.0,9.998e-05,2]
[348474978,1736554240237,-673.19,9.998e-05,2]
[348474980,1736554240247,-500.0,9.998e-05,2]
[348474982,1736554240260,-513.56589361,9.998e-05,2]
[348474984,1736554240269,-2401.67,9.998e-05,2]
[348474986,1736554240279,-500.0,9.998e-05,2]
[348474988,1736554240289,-500.0,9.998e-05,2]
[348474990,1736554240299,-505.24,9.998e-05,2]
[348474992,1736554240308,-866.95,9.998e-05,2]
[348474994,1736554240317,-742.12,9.998e-05,2]
[348474996,1736554240328,-500.0,9.998e-05,2]
[348474997,1736554240338,-1798.01,9.998e-05,2]
[348475000,1736554240348,-500.0,9.998e-05,2]
[348475001,1736554240358,-500.0,9.998e-05,2]
[348475003,1736554240367,-811.32,9.998e-05,2]
[348475005,1736554240377,-1265.24,9.998e-05,2]
[348475007,1736554240386,-506.92734699,9.998e-05,2]
[348475009,1736554240396,-500.0,9.998e-05,2]
[348475011,1736554240406,-766.28,9.998e-05,2]
[348475013,1736554240415,-500.0,9.998e-05,2]
[348475015,1736554240425,-500.0,9.998e-05,2]
[348475017,1736554240434,-500.0,9.998e-05,2]
[348475019,1736554240444,-501.55,9.998e-05,2]
[348475021,1736554240454,-500.0,9.998e-05,2]
[348475023,1736554240463,-500.0,9.998e-05,2]
[348475025,1736554240472,-2106.68,9.998e-05,2]
[348475027,1736554240482,-1168.81,9.998e-05,2]
[348475029,1736554240492,-500.0,9.998e-05,2]
[348475031,1736554240502,-500.0,9.998e-05,2]
[348475033,1736554240511,-500.0,9.998e-05,2]
[348475035,1736554240521,-172.16,9.998e-05,2]
[348475038,1736554240531,-500.0,9.998e-05,2]
[348475040,1736554240541,-500.0,9.998e-05,2]
[348475042,1736554240551,-652.24,9.998e-05,2]
[348475043,1736554240560,-500.0,9.998e-05,2]
[348475045,1736554240569,-522.74,9.998e-05,2]
[348475047,1736554240579,-1179.1,9.998e-05,2]
[348475049,1736554240589,-500.0,9.998e-05,2]
[348475051,1736554240598,-500.0,9.998e-05,2]
[348475054,1736554240608,-1770.05,9.998e-05,2]
[348475056,1736554240618,-2290.53,9.998e-05,2]
[348475058,1736554240627,-500.0,9.998e-05,2]
[348475060,1736554240636,-970.08,9.998e-05,2]
[348475061,1736554240646,-500.0,9.998e-05,2]
[348475063,1736554240655,-500.0,9.998e-05,2]
[348475064,1736554240665,-1821.19,9.998e-05,2]
[348475066,1736554240675,-500.0,9.998e-05,2]
[348475068,1736554240685,-500.0,9.998e-05,2]
[348475070,1736554240695,-500.0,9.998e-05,2]
[348475072,1736554240705,-500.0,9.998e-05,2]
[348475074,1736554240714,-598.33,9.998e-05,2]
[348475076,1736554240724,-500.0,9.998e-05,2]
[348475078,1736554240733,-500.0,9.998e-05,2]
[348475080,1736554240743,-500.0,9.998e-05,2]
[348475082,1736554240752,-531.56,9.998e-05,2]
[348475084,1736554240761,-500.0,9.998e-05,2]
[348475086,1736554240770,-500.0,9.998e-05,2]
[348475088,1736554240780,-500.0,9.998e-05,2]
[348475090,1736554240789,-991.23,9.998e-05,2]
[348475092,1736554240799,-1299.5,9.998e-05,2]
[348475094,1736554240808,-500.0,9.998e-05,2]
[348475096,1736554240818,-1719.87,9.998e-05,2]
[348475098,1736554240827,-439.77917585,9.998e-05,2]
[348475100,1736554240837,-500.0,9.998e-05,2]
[348475102,1736554240846,-933.17,9.998e-05,2]
[348475104,1736554240855,-2058.84,9.998e-05,2]
[348475106,1736554240865,-500.0,9.998e-05,2]
[348475107,1736554240874,-375.91,9.998e-05,2]
[348475109,1736554240883,-500.0,9.998e-05,2]
[348475111,1736554240895,-500.0,9.998e-05,2]
[348475113,1736554240905,-500.0,9.998e-05,2]
[348475115,1736554240915,-500.0,9.998e-05,2]
[348475118,1736554240926,-577.93861152,9.998e-05,2]
[348475119,1736554240935,-500.0,9.998e-05,2]
[348475121,1736554240946,-500.0,9.998e-05,2]
[348475123,1736554240955,-500.0,9.998e-05,2]
[348475125,1736554240965,-894.36,9.998e-05,2]
[348475127,1736554240974,-500.0,9.998e-05,2]
[348475129,1736554240983,-500.0,9.998e-05,2]
[348475131,1736554240993,-500.0,9.998e-05,2]
[348475133,1736554241002,-500.37990955,9.998e-05,2]
[348475135,1736554241011,-500.0,9.998e-05,2]
[348475137,1736554241021,-500.0,9.998e-05,2]
[348475139,1736554241031,-996.82,9.998e-05,2]
[348475141,1736554241040,-500.0,9.998e-05,2]
[348475143,1736554241050,-500.0,9.998e-05,2]
[348475145,1736554241060,-728.3,9.998e-05,2]
[348475147,1736554241069,-1333.0,9.998e-05,2]
[348475149,1736554241079,-268.99,9.998e-05,2]
[348475151,1736554241089,-500.0,9.998e-05,2]
[348475153,1736554241098,-500.0,9.998e-05,2]
[348475155,1736554241108,-500.0,9.998e-05,2]
[348475157,1736554241117,-500.0,9.998e-05,2]
[348475159,1736554241127,-500.0,9.998e-05,2]
[348475161,1736554241136,-1020.19,9.998e-05,2]
[348475183,1736554241374,-500.0,9.998e-05,2]
[348475185,1736554241384,-500.0,9.998e-05,2]
[348475187,1736554241394,-502.55208762,9.999e-05,2]
[348475189,1736554241403,-500.0,9.999e-05,2]
[348475191,1736554241413,-502.02745025,9.999e-05,2]
[348475193,1736554241422,-206.90388621,9.999e-05,2]
[348475195,1736554241432,-500.0,9.999e-05,2]
[348475197,1736554241442,-209.4063783,9.999e-05,2]
[348475199,1736554241451,-500.0,9.999e-05,2]
[348475201,1736554241460,-500.0,9.999e-05,2]
[348475203,1736554241469,-500.0,9.999e-05,2]
[348475205,1736554241480,-500.45044459,9.999e-05,2]
[348475206,1736554241489,-502.51519698,9.999e-05,2]
[348475207,1736554241498,-500.57455814,9.999e-05,2]
[348475208,1736554241507,-501.12418719,9.999e-05,2]
[348475209,1736554241517,-500.0,9.999e-05,2]
[348475210,1736554241527,-500.0,9.999e-05,2]
[348475211,1736554241536,-500.0,9.999e-05,2]
[348475212,1736554241546,-500.26887599,9.999e-05,2]
[348475213,1736554241555,-500.0,9.999e-05,2]
[348475214,1736554241565,-500.64129024,9.999e-05,2]
[348475215,1736554241574,-500.0,9.999e-05,2]
[348475216,1736554241584,-500.0,9.999e-05,2]
[348475217,1736554241593,-500.0,9.999e-05,2]
[348475218,1736554241602,-500.0,9.999e-05,2]
[348475219,1736554241611,-500.0,9.999e-05,2]
[348475220,1736554241621,-500.0,9.999e-05,2]
[348475222,1736554241631,-500.0,9.999e-05,2]
[348475224,1736554241640,-500.0,9.999e-05,2]
[348475226,1736554241649,-500.0,9.999e-05,2]
[348475228,1736554241658,-500.0,9.999e-05,2]
[348475229,1736554241668,-500.0,9.999e-05,2]
[348475231,1736554241678,-502.93717511,9.999e-05,2]
[348475233,1736554241687,-500.0,9.999e-05,2]
[348475235,1736554241698,-500.0,9.999e-05,2]
[348475237,1736554241707,-500.0,9.999e-05,2]
[348475239,1736554241716,-500.0,9.999e-05,2]
[348475241,1736554241725,-500.81129647,9.999e-05,2]
[348475243,1736554241735,-500.53493488,9.999e-05,2]
[348475244,1736554241744,-503.74058686,9.999e-05,2]
[348475246,1736554241753,-500.46047113,9.999e-05,2]
[348475248,1736554241763,-301.66733362,9.999e-05,2]
[348475250,1736554241772,-501.58616187,9.999e-05,2]
[348475252,1736554241782,-500.0,9.999e-05,2]
[348475254,1736554241791,-502.04273035,9.999e-05,2]
[348475256,1736554241801,-500.0,9.999e-05,2]
[348475257,1736554241811,-502.08340075,9.999e-05,2]
[348475258,1736554241820,-502.82261065,9.999e-05,2]
[348475259,1736554241830,-502.69058578,9.999e-05,2]
[348475260,1736554241839,-503.69044292,9.999e-05,2]
[348475261,1736554241849,-500.29862436,9.999e-05,2]
[348475262,1736554241859,-616.83250251,9.999e-05,2]
[348475263,1736554241868,-502.19373558,9.999e-05,2]
[348475264,1736554241878,-500.27013525,9.999e-05,2]
[348475265,1736554241887,-841.66,9.999e-05,2]
[348475266,1736554241897,-772.75,9.999e-05,2]
[348475267,1736554241906,-500.0,9.999e-05,2]
[348475268,1736554241916,-1709.04,9.999e-05,2]
[348475269,1736554241925,-548.31,9.999e-05,2]
[348475270,1736554241935,-2303.2,9.999e-05,2]
[348475271,1736554241948,-2303.2,9.999e-05,2]
[348475272,1736554241957,-2303.2,9.999e-05,2]
[348475273,1736554241967,-2303.2,9.999e-05,2]
[348475274,1736554241976,-2303.2,9.999e-05,2]
[348475275,1736554241985,-2303.2,9.999e-05,2]
[348475276,1736554241994,-2303.2,9.999e-05,2]
[348475277,1736554242004,-2303.2,9.999e-05,2]
[348475278,1736554242013,-2303.2,9.999e-05,2]
[348475279,1736554242022,-2303.2,9.999e-05,2]
[348475280,1736554242032,-500.0,9.999e-05,2]
[348475281,1736554242043,-2303.2,9.999e-05,2]
[348475282,1736554242053,-2303.2,9.999e-05,2]
[348475283,1736554242063,-2303.2,9.999e-05,2]
[348475284,1736554242072,-2303.2,9.999e-05,2]
[348475285,1736554242082,-2303.2,9.999e-05,2]
[348475286,1736554242093,-2303.2,9.999e-05,2]
[348475287,1736554242104,-2303.2,9.999e-05,2]
[348475288,1736554242113,-2303.2,9.999e-05,2]
[348475289,1736554242122,-500.0,9.999e-05,2]
[348475290,1736554242132,-617.41,9.999e-05,2]
[348475291,1736554242142,-500.0,9.999e-05,2]
[348475292,1736554242152,-500.0,9.999e-05,2]
[348475293,1736554242162,-500.0,9.999e-05,2]
[348475294,1736554242171,-500.0,9.999e-05,2]
[348475295,1736554242182,-500.0,9.999e-05,2]
[348475296,1736554242193,-500.0,9.999e-05,2]
[348475297,1736554242203,-500.0,9.999e-05,2]
[348475298,1736554242214,-935.77,9.999e-05,2]
[348475299,1736554242224,-1079.41,9.999e-05,2]
[348475300,1736554242234,-1886.3,9.999e-05,2]
[348475301,1736554242244,-500.0,9.999e-05,2]
[348475302,1736554242257,-1013.62,9.999e-05,2]
[348475303,1736554242266,-2462.22,9.999e-05,2]
[348475304,1736554242277,-500.0,9.999e-05,2]
[348475305,1736554242286,-231759.61656743,0.0001,2]
[348475306,1736554242298,-15825.35,0.0001,2]
[348475307,1736554242311,-118333.15455872,0.0001,2]
[348475308,1736554242329,-4372.53254425,0.0001,2]
[348475309,1736554242875,-5000.0,0.0001,2]
[348475310,1736554242894,-542.59004501,0.0001,2]
[348475311,1736554242906,-585.37581975,0.0001,2]
[348475312,1736554242930,-446.63107113,0.0001,2]
[348475313,1736554242940,-10.24392887,0.0001,2]
[348475319,1736554243229,-2989.75607113,0.0001,2]
[348475320,1736554243239,-167.0847272,0.0001,2]
[348475321,1736554243248,-1000.0,0.0001,2]
[348475322,1736554243261,-158.44096002,0.0001,2]
[348475323,1736554243270,-203.99708362,0.0001,2]
[348475324,1736554243279,-203.99708357,0.00010058,2]
[348475325,1736554243288,-2303.2,0.0001007,2]
[348475326,1736554243299,-652.2,0.00010071,2]
[348475327,1736554243308,-500.0,0.00010071,2]
[348475328,1736554243317,-515.44,0.00010071,2]
[348475329,1736554243328,-500.0,0.00010071,2]
[348475330,1736554243337,-1000.0,0.00010071,2]
[348475331,1736554243346,-500.0,0.00010071,2]
[348475332,1736554243355,-500.0,0.00010071,2]
[348475333,1736554243366,-832.78,0.00010071,2]
[348475334,1736554243376,-1000.0,0.000101,2]
[348475335,1736554243386,-510.31,0.00010137,2]
[348475336,1736554243397,-158.95,0.00010137,2]
[348475337,1736554243407,-348.54,0.00010137,2]
[348475338,1736554243417,-500.0,0.00010173,2]
[348475339,1736554243428,-500.0,0.00010173,2]
[348475340,1736554243438,-2678.5,0.00010173,2]
[348475341,1736554243452,-1086.44,0.00010173,2]
[348475342,1736554243461,-2558.66,0.00010173,2]
[348475343,1736554243471,-2908.24,0.00010173,2]
[348475344,1736554243480,-500.0,0.00010173,2]
[348475345,1736554243491,-1168.85,0.00010173,2]
[348475346,1736554243502,-2249.65,0.00010173,2]
[348475347,1736554243512,-979.82,0.00010182,2]
[348475348,1736554243522,-150.0,0.00010182,2]
[348475349,1736554243531,-436.97,0.00010182,2]
[348475350,1736554243540,-150.0,0.00010182,2]
[348475351,1736554243550,-203.99708357,0.00010216,2]
[348475352,1736554243560,-500.0,0.00010272,2]
[348475353,1736554243569,-500.0,0.00010272,2]
[348475354,1736554243579,-271.69,0.00010272,2]
[348475355,1736554243589,-289.82800921,0.00010272,2]
[348475356,1736554243598,-500.0,0.00010272,2]
[348475357,1736554243608,-500.0,0.00010272,2]
[348475358,1736554243618,-500.0,0.00010272,2]
[348475359,1736554243627,-500.0,0.00010272,2]
[348475360,1736554243637,-500.0,0.00010272,2]
[348475361,1736554243646,-500.0,0.00010272,2]
[348475362,1736554243656,-500.0,0.00010272,2]
[348475363,1736554243667,-392.55667537,0.00010272,2]
[348475364,1736554243677,-500.0,0.00010272,2]
[348475365,1736554243687,-500.0,0.00010272,2]